bitfinex/quotes_BTCUSD_20250711
["timestamp","ask_amount","ask_price","bid_price","bid_amount"]
[1752228178297,0.50530118,118260.0,118250.0,0.35925993]
[1752228178950,0.06974,118260.0,118250.0,0.35925993]
[1752228179140,0.50530118,118260.0,118250.0,0.35925993]
[1752228180331,0.94320236,118260.0,118250.0,0.27383]
[1752228180536,0.94320236,118260.0,118250.0,0.30236741]
[1752228180735,0.50764118,118260.0,118250.0,0.30236741]
[1752228180937,0.94320236,118260.0,118250.0,0.30236741]
[1752228181174,0.50764118,118260.0,118250.0,0.30236741]
[1752228181537,0.94320236,118260.0,118250.0,0.30236741]
[1752228181740,0.50764118,118260.0,118250.0,0.30236741]
[1752228181941,0.94320236,118260.0,118250.0,0.27383]
[1752228182127,1.07896236,118260.0,118250.0,0.00251]
[1752228183116,1.12986389,118260.0,118250.0,0.00251]
[1752228183840,1.12982389,118260.0,118250.0,0.00251]
[1752228185414,0.66908418,118260.0,118250.0,0.00251]
[1752228185620,1.10464536,118260.0,118250.0,0.00251]
[1752228186034,0.96856536,118260.0,118250.0,0.00251]
[1752228186227,0.53300418,118260.0,118250.0,0.00251]
[1752228186449,1.10464536,118260.0,118250.0,0.00251]
[1752228188188,1.73064584,118260.0,118250.0,0.00251]
[1752228188384,1.57298268,118260.0,118250.0,0.00251]
[1752228188590,1.5729826,118260.0,118250.0,0.00251]
[1752228188815,1.57298268,118260.0,118250.0,0.00251]
[1752228189056,1.5729826,118260.0,118250.0,0.00251]
[1752228189844,1.55607144,118260.0,118250.0,0.00251]
[1752228190092,1.5729826,118260.0,118250.0,0.00251]
[1752228190293,1.55607144,118260.0,118250.0,0.00251]
[1752228190498,1.54761614,118260.0,118250.0,0.00251]
[1752228190837,1.53471529,118260.0,118250.0,0.00251]
[1752228192162,1.33681649,118260.0,118250.0,0.00251]
[1752228192358,1.44936536,118260.0,118250.0,0.00251]
[1752228194175,1.31156536,118260.0,118250.0,0.00251]
[1752228194423,0.578123,118260.0,118250.0,0.00251]
[1752228194624,1.44924536,118260.0,118250.0,0.00251]
[1752228195725,1.45224536,118260.0,118250.0,0.00251]
[1752228197016,0.97723588,118260.0,118250.0,0.00251]
[1752228197228,1.00913588,118260.0,118250.0,0.00251]
[1752228197430,1.04073588,118260.0,118250.0,0.00251]
[1752228197609,1.47629706,118260.0,118250.0,0.00251]
[1752228197858,1.47629706,118260.0,118250.0,0.50251]
[1752228198240,1.47625706,118260.0,118250.0,0.55391541]
[1752228198449,1.45089406,118260.0,118250.0,0.55391541]
[1752228200776,1.31325406,118260.0,118250.0,0.55391541]
[1752228200985,1.45093406,118260.0,118250.0,0.55391541]
[1752228202770,1.31325406,118260.0,118250.0,0.55391541]
[1752228202943,0.5795317,118260.0,118250.0,0.55391541]
[1752228203184,1.31325406,118260.0,118250.0,0.55391541]
[1752228203359,1.45065406,118260.0,118250.0,0.55391541]
[1752228203782,1.31325406,118260.0,118250.0,0.55391541]
[1752228203979,1.45065406,118260.0,118250.0,0.55391541]
[1752228206989,0.5795317,118260.0,118250.0,0.55391541]
[1752228207216,1.45065406,118260.0,118250.0,0.55391541]
[1752228210008,1.44765406,118260.0,118250.0,0.55391541]
[1752228215065,0.87469288,118260.0,118250.0,0.55391541]
[1752228215271,0.77856118,118260.0,118250.0,0.61909541]
[1752228215548,0.34534,118260.0,118250.0,0.61909541]
[1752228215750,0.78090118,118260.0,118250.0,0.61909541]
[1752228215956,0.78090118,118260.0,118250.0,0.58909541]
[1752228216368,0.78090118,118260.0,118250.0,0.62189541]
[1752228216985,0.78090118,118260.0,118250.0,0.58909541]
[1752228217394,0.78090118,118260.0,118250.0,0.62099541]
[1752228218767,0.78090118,118260.0,118250.0,0.58909541]
[1752228219169,0.78603118,118260.0,118250.0,0.55589541]
[1752228219368,0.78603118,118260.0,118250.0,0.58859541]
[1752228219734,0.78603118,118260.0,118250.0,0.62079541]
[1752228219735,0.78400118,118260.0,118250.0,0.62079541]
[1752228219903,0.78400118,118260.0,118250.0,0.58859541]
[1752228220104,1.18090118,118260.0,118250.0,0.58859541]
[1752228220325,1.18090118,118260.0,118250.0,0.55589541]
[1752228221034,1.18390118,118260.0,118250.0,0.58859541]
[1752228221585,1.18700118,118260.0,118250.0,0.55589541]
[1752228222423,1.18390118,118260.0,118250.0,0.58609541]
[1752228222625,0.74834,118260.0,118250.0,0.58609541]
[1752228222827,0.78390118,118260.0,118250.0,0.61869541]
[1752228223269,1.18390118,118260.0,118250.0,0.61869541]
[1752228224339,0.78156118,118260.0,118250.0,0.61869541]
[1752228224708,0.78156118,118260.0,118250.0,0.62075541]
[1752228224851,0.78156118,118260.0,118250.0,0.70618534]
[1752228225050,0.346,118260.0,118250.0,0.70618534]
[1752228225256,0.78156118,118260.0,118250.0,0.70618534]
[1752228225838,0.346,118260.0,118250.0,0.70618534]
[1752228226049,0.78156118,118260.0,118250.0,0.70618534]
[1752228226258,0.78156118,118260.0,118250.0,0.70412534]
[1752228226674,0.77856118,118260.0,118250.0,0.70412534]
[1752228230469,0.77856118,118260.0,118250.0,0.67152534]
[1752228230739,0.77556118,118260.0,118250.0,0.67152534]
[1752228231197,0.77756118,118260.0,118250.0,0.67152534]
[1752228231511,0.342,118260.0,118250.0,0.67152534]
[1752228231718,0.77756118,118260.0,118250.0,0.67152534]
[1752228231923,0.77756118,118260.0,118250.0,0.70232534]
[1752228232129,0.342,118260.0,118250.0,0.70232534]
[1752228232517,0.77756118,118260.0,118250.0,0.70232534]
[1752228232721,0.78156118,118260.0,118250.0,0.67152534]
[1752228233315,0.346,118260.0,118250.0,0.70322534]
[1752228233547,0.006,118260.0,118250.0,0.70528534]
[1752228234006,0.002,118260.0,118250.0,0.75294534]
[1752228234221,0.002,118260.0,118250.0,0.91816105]
[1752228235106,0.00361,118300.0,118260.0,0.10796]
[1752228235330,0.43917118,118300.0,118290.0,0.00196]
[1752228235544,0.43917118,118300.0,118290.0,0.42214993]
[1752228236458,0.00361,118300.0,118290.0,0.42214993]
[1752228236657,0.43917118,118300.0,118290.0,0.42214993]
[1752228241668,0.00361,118300.0,118290.0,0.42214993]
[1752228241841,0.43917118,118300.0,118290.0,0.4375383]
[1752228244668,0.00361,118300.0,118290.0,0.4375383]
[1752228245427,0.43917118,118300.0,118290.0,0.4375383]
[1752228245628,0.00361,118300.0,118290.0,0.4375383]
[1752228246075,0.00361,118300.0,118290.0,0.49973915]
[1752228247122,0.00361,118300.0,118290.0,0.83973915]
[1752228247559,0.00361,118300.0,118290.0,0.84073915]
[1752228248725,0.00361,118300.0,118290.0,0.83973915]
[1752228251194,0.43917118,118300.0,118290.0,0.83973915]
[1752228252840,0.00361,118300.0,118290.0,0.84073915]
[1752228252996,0.43917118,118300.0,118290.0,0.84073915]
[1752228255057,0.00361,118300.0,118290.0,0.84073915]
[1752228259392,0.00361,118300.0,118290.0,0.84173915]
[1752228262819,0.00361,118300.0,118290.0,0.99241401]
[1752228263270,0.00361,118300.0,118290.0,1.01775701]
[1752228263504,0.00301,118330.0,118290.0,1.01775701]
[1752228263505,0.50295118,118340.0,118310.0,0.12440085]
[1752228263775,0.43556118,118330.0,118320.0,0.35618993]
[1752228264048,0.43556118,118330.0,118320.0,0.38912993]
[1752228264290,0.43556118,118330.0,118320.0,0.35832993]
[1752228264528,0.43765118,118330.0,118320.0,0.35832993]
[1752228264782,0.43765118,118330.0,118320.0,0.39729525]
[1752228265269,0.43556118,118330.0,118320.0,0.39729525]
[1752228266274,0.06549,118340.0,118320.0,0.39729525]
[1752228266517,0.43556118,118330.0,118320.0,0.39729525]
[1752228266770,0.44064118,118330.0,118320.0,0.39729525]
[1752228267019,0.50264118,118330.0,118320.0,0.39515525]
[1752228268722,0.44264118,118330.0,118320.0,0.39729525]
[1752228269477,0.002,118330.0,118320.0,0.39729525]
[1752228269724,0.43556118,118330.0,118320.0,0.42959525]
[1752228270196,0.43556118,118330.0,118320.0,0.39729525]
[1752228270427,0.03479,118340.0,118320.0,0.39729525]
[1752228270671,0.43556118,118330.0,118320.0,0.39729525]
[1752228271788,0.43556118,118330.0,118320.0,0.45969525]
[1752228271991,0.43556118,118340.0,118320.0,0.5239561]
[1752228272399,0.43556118,118330.0,118320.0,0.5239561]
[1752228272606,0.43556118,118330.0,118320.0,1.0239561]
[1752228272818,0.43556118,118330.0,118320.0,0.9742361]
[1752228273023,0.43556118,118330.0,118320.0,0.64246518]
[1752228273334,0.43556118,118330.0,118320.0,0.61196518]
[1752228274495,0.44064118,118330.0,118320.0,0.88260518]
[1752228275598,0.00508,118330.0,118320.0,0.88260518]
[1752228275803,0.44064118,118330.0,118320.0,0.88260518]
[1752228276495,0.43765118,118330.0,118320.0,0.88260518]
[1752228277318,0.93550236,118330.0,118320.0,0.58542993]
[1752228277521,0.93550236,118330.0,118320.0,0.72074993]
[1752228277929,0.93650236,118330.0,118320.0,0.72074993]
[1752228278509,0.93650236,118330.0,118320.0,0.63532]
[1752228278710,0.93550236,118330.0,118320.0,0.63532]
[1752228278932,0.93550236,118330.0,118320.0,0.70009601]
[1752228279094,0.93550236,118330.0,118320.0,0.56477601]
[1752228279295,0.93550236,118330.0,118320.0,0.70009601]
[1752228279866,1.27784236,118330.0,118320.0,0.5]
[1752228279986,1.38501168,118330.0,118320.0,0.5]
[1752228280401,1.41036168,118330.0,118320.0,0.5]
[1752228280805,1.41036168,118330.0,118250.0,0.64450564]
[1752228280806,0.00234,118300.0,118250.0,0.64450564]
[1752228281018,0.0629,118270.0,118260.0,0.22074993]
[1752228281390,0.06798,118270.0,118260.0,0.22074993]
[1752228282226,0.50354118,118270.0,118260.0,0.22074993]
[1752228282672,0.06798,118270.0,118260.0,0.22074993]
[1752228282888,0.50354118,118270.0,118260.0,0.22074993]
[1752228283092,0.50354118,118270.0,118260.0,0.27727437]
[1752228286215,0.50654118,118270.0,118260.0,0.27727437]
[1752228287682,0.50654118,118270.0,118260.0,0.27577437]
[1752228288017,0.07098,118270.0,118260.0,0.27577437]
[1752228288214,0.50654118,118270.0,118260.0,0.27577437]
[1752228289044,0.07098,118270.0,118260.0,0.27577437]
[1752228289384,0.50654118,118270.0,118260.0,0.27577437]
[1752228289948,0.47504118,118270.0,118260.0,0.27577437]
[1752228290354,0.44364118,118270.0,118260.0,0.27790437]
[1752228290753,0.00808,118270.0,118260.0,0.27790437]
[1752228290968,0.44364118,118270.0,118260.0,0.27790437]
[1752228291414,0.44065118,118270.0,118260.0,0.27790437]
[1752228292349,0.43856118,118270.0,118260.0,0.27790437]
[1752228292526,0.43856118,118270.0,118260.0,0.30956437]
[1752228292731,0.43856118,118270.0,118260.0,0.33856437]
[1752228292936,0.003,118270.0,118260.0,0.33856437]
[1752228293146,0.43856118,118270.0,118260.0,0.33856437]
[1752228294088,0.003,118270.0,118260.0,0.40076522]
[1752228296143,0.43856118,118270.0,118260.0,0.40076522]
[1752228296338,0.43556118,118270.0,118260.0,0.40076522]
[1752228296549,0.43556118,118270.0,118260.0,0.36970522]
[1752228296904,0.43556118,118270.0,118260.0,0.40236522]
[1752228297626,0.03249,118290.0,118270.0,0.01454085]
[1752228297837,0.06179,118290.0,118280.0,0.22078993]
[1752228298037,0.06329,118300.0,118280.0,0.22291993]
[1752228298849,0.00319,118300.0,118290.0,0.00211344]
[1752228299087,0.43875118,118310.0,118290.0,0.12127337]
[1752228299299,0.00319,118310.0,118300.0,0.22078993]
[1752228299511,0.44077118,118310.0,118300.0,0.24936192]
[1752228300741,0.47297118,118310.0,118300.0,0.24936192]
[1752228301960,0.50337118,118310.0,118300.0,0.24936192]
[1752228302318,0.50337118,118310.0,118300.0,0.13532]
[1752228302522,0.0616,118290.0,118270.0,0.04169061]
[1752228302651,0.0616,118290.0,118280.0,0.08542993]
[1752228302842,0.49918118,118290.0,118280.0,0.22074993]
[1752228303253,0.50237118,118290.0,118280.0,0.22074993]
[1752228303453,0.50237118,118290.0,118280.0,0.24699398]
[1752228303933,0.43556118,118290.0,118280.0,0.24912398]
[1752228304087,0.43875118,118300.0,118280.0,0.08542993]
[1752228304272,0.03359,118300.0,118290.0,0.08542993]
[1752228304468,0.47117118,118300.0,118290.0,0.09397292]
[1752228304880,0.46157754,118300.0,118290.0,0.09397292]
[1752228305284,0.46157754,118300.0,118290.0,0.22929292]
[1752228306557,0.46357754,118300.0,118290.0,0.22929292]
[1752228307381,0.46657754,118300.0,118290.0,0.22929292]
[1752228308447,0.92364508,118300.0,118290.0,0.00854299]
[1752228308594,0.92364508,118300.0,118290.0,0.13532]
[1752228309853,0.0312,118290.0,118270.0,0.04140959]
[1752228310056,0.46088754,118280.0,118270.0,0.12683952]
[1752228310268,0.03811,118280.0,118270.0,0.26215952]
[1752228310431,0.46407754,118280.0,118270.0,0.26215952]
[1752228310985,0.03811,118280.0,118270.0,0.26215952]
[1752228311280,0.46407754,118280.0,118270.0,0.26215952]
[1752228320188,0.45022115,118280.0,118270.0,0.26215952]
[1752228320814,0.02425361,118280.0,118270.0,0.26215952]
[1752228320984,0.45022115,118280.0,118270.0,0.26215952]
[1752228321370,0.43117754,118280.0,118270.0,0.26215952]
[1752228322679,0.00521,118280.0,118270.0,0.26215952]
[1752228322840,0.00319,118280.0,118270.0,0.26215952]
[1752228323045,0.46011754,118290.0,118270.0,0.26215952]
[1752228323194,0.49291754,118290.0,118270.0,0.26215952]
[1752228323398,0.00295,118280.0,118270.0,0.26215952]
[1752228323598,0.00295,118280.0,118270.0,0.26015952]
[1752228324836,0.43926246,118280.0,118270.0,0.26015952]
[1752228325051,0.44140246,118280.0,118270.0,0.26015952]
[1752228325686,0.43926246,118280.0,118270.0,0.26015952]
[1752228329953,0.44140246,118280.0,118270.0,0.26015952]
[1752228330172,0.47140246,118280.0,118270.0,0.26015952]
[1752228330632,0.00509,118280.0,118270.0,0.26015952]
[1752228331098,0.93851492,118280.0,118270.0,0.12483952]
[1752228331327,0.50220246,118280.0,118270.0,0.26003952]
[1752228332683,0.06589,118280.0,118270.0,0.26003952]
[1752228332895,0.50220246,118280.0,118270.0,0.26003952]
[1752228339297,0.00295,118280.0,118270.0,0.26003952]
[1752228339423,0.44140246,118280.0,118270.0,0.26003952]
[1752228339652,0.47190246,118280.0,118270.0,0.26003952]
[1752228342869,0.50200246,118280.0,118270.0,0.26003952]
[1752228344524,0.06569,118280.0,118270.0,0.26003952]
[1752228344738,0.50200246,118280.0,118270.0,0.26003952]
[1752228348551,0.47190246,118280.0,118270.0,0.26003952]
[1752228350008,0.03559,118280.0,118270.0,0.26003952]
[1752228350214,0.47190246,118280.0,118270.0,0.26003952]
[1752228351011,0.03559,118280.0,118270.0,0.26003952]
[1752228351366,0.47190246,118280.0,118270.0,0.26003952]
[1752228352224,0.47330315,118280.0,118270.0,0.26003952]
[1752228353507,0.50650315,118280.0,118270.0,0.26003952]
[1752228355115,0.50650315,118280.0,118270.0,0.41071438]
[1752228356500,0.50650315,118280.0,118270.0,0.26003952]
[1752228357783,0.07019069,118280.0,118270.0,0.26003952]
[1752228357935,0.47330315,118280.0,118270.0,0.26003952]
[1752228358143,0.47330315,118280.0,118270.0,0.41071438]
[1752228358940,0.47330315,118280.0,118270.0,0.26003952]
[1752228359588,0.03699069,118280.0,118270.0,0.26003952]
[1752228359790,0.50550315,118280.0,118270.0,0.26003952]
[1752228360350,0.94181561,118280.0,118270.0,0.08542993]
[1752228360570,0.94181561,118280.0,118260.0,0.15067486]
[1752228360571,0.0633,118270.0,118260.0,0.15067486]
[1752228360767,0.50161246,118270.0,118260.0,0.28571486]
[1752228360967,0.50458246,118270.0,118260.0,0.28571486]
[1752228361381,0.50458246,118270.0,118260.0,0.13504]
[1752228361581,0.50458246,118270.0,118260.0,0.148795]
[1752228362242,0.50458246,118270.0,118260.0,0.148755]
[1752228365507,0.84458246,118270.0,118260.0,0.135]
[1752228365912,0.97958246,118270.0,118260.0,0.135]
[1752228366782,0.84458246,118270.0,118260.0,0.135]
[1752228367005,0.97958246,118270.0,118260.0,0.135]
[1752228367237,0.54327,118270.0,118260.0,0.135]
[1752228367451,0.97958246,118270.0,118260.0,0.148751]
[1752228367660,0.40827,118270.0,118260.0,0.148751]
[1752228367828,0.84458246,118270.0,118260.0,0.148751]
[1752228369719,0.50458246,118270.0,118260.0,0.148751]
[1752228372776,0.06727,118270.0,118260.0,0.148711]
[1752228373001,0.50358246,118270.0,118260.0,0.148711]
[1752228373239,0.06727,118270.0,118260.0,0.148711]
[1752228373466,0.50358246,118270.0,118260.0,0.148711]
[1752228374151,0.50358246,118270.0,118260.0,0.013751]
[1752228374373,0.44128246,118270.0,118250.0,0.00251]
[1752228374595,0.002,118270.0,118260.0,0.13496]
[1752228374876,0.002,118270.0,118250.0,0.13747]
[1752228375097,0.0326,118260.0,118250.0,0.13747]
[1752228375310,0.03757,118260.0,118250.0,0.13747]
[1752228375744,0.06797,118260.0,118250.0,0.17357478]
[1752228375954,0.94059492,118260.0,118250.0,0.17357478]
[1752228378858,0.94059492,118260.0,118250.0,0.13747]
[1752228379078,0.50428246,118260.0,118250.0,0.13747]
[1752228380577,0.94059492,118260.0,118250.0,0.13747]
[1752228382071,0.06797,118260.0,118250.0,0.13747]
[1752228382336,0.94059492,118260.0,118250.0,0.13747]
[1752228382568,0.94059492,118260.0,118250.0,0.15237141]
[1752228383889,0.94159492,118260.0,118250.0,0.15237141]
[1752228384313,0.06897,118260.0,118250.0,0.15237141]
[1752228384530,0.50528246,118260.0,118250.0,0.15237141]
[1752228385594,0.06897,118260.0,118250.0,0.15237141]
[1752228385809,0.50528246,118260.0,118250.0,0.15237141]
[1752228386026,0.44228246,118260.0,118250.0,0.15237141]
[1752228386253,0.00597,118260.0,118250.0,0.15237141]
[1752228386480,0.43731246,118260.0,118250.0,0.30030134]
[1752228389499,0.43871315,118260.0,118250.0,0.30030134]
[1752228389942,0.43871315,118260.0,118250.0,0.23780134]
[1752228392651,0.00240069,118260.0,118250.0,0.30210134]
[1752228392888,0.43871315,118260.0,118250.0,0.30210134]
[1752228393330,0.00240069,118260.0,118250.0,0.30210134]
[1752228393537,0.43871315,118260.0,118250.0,0.30210134]
[1752228394459,0.00240069,118260.0,118250.0,0.30210134]
[1752228394684,0.00240069,118260.0,118250.0,0.36430219]
[1752228394901,0.00240069,118260.0,118250.0,0.51497705]
[1752228395558,0.43871315,118260.0,118250.0,0.51497705]
[1752228395995,0.43883776,118260.0,118250.0,0.51497705]
[1752228396440,0.0025253,118260.0,118250.0,0.51497705]
[1752228396684,0.43883776,118260.0,118250.0,0.51497705]
[1752228397098,0.43871315,118260.0,118250.0,0.51485244]
[1752228398600,0.00240069,118260.0,118250.0,0.81175244]
[1752228398810,0.43871315,118260.0,118250.0,0.81175244]
[1752228399433,0.43871315,118260.0,118250.0,0.81375244]
[1752228400458,0.43871315,118260.0,118250.0,0.61541758]
[1752228400659,0.43871315,118260.0,118250.0,0.55111758]
[1752228401644,0.44386315,118260.0,118250.0,0.55111758]
[1752228402286,0.44176315,118260.0,118250.0,0.55111758]
[1752228402673,0.43871315,118260.0,118250.0,0.55111758]
[1752228403025,0.43871315,118260.0,118250.0,0.61391758]
[1752228404111,0.43771315,118260.0,118250.0,0.61391758]
[1752228404367,0.43771315,118260.0,118250.0,0.55111758]
[1752228404576,0.43771315,118260.0,118250.0,0.25421758]
[1752228405179,0.44076315,118260.0,118250.0,0.25421758]
[1752228406246,0.47356315,118260.0,118250.0,0.25421758]
[1752228407375,0.47356315,118260.0,118250.0,0.25221758]
[1752228408009,0.44286315,118260.0,118250.0,0.25421758]
[1752228408190,0.44286315,118260.0,118250.0,0.23967673]
[1752228408432,0.50436315,118260.0,118250.0,0.23867673]
[1752228409079,0.94067561,118260.0,118250.0,0.23867673]
[1752228409296,0.50436315,118260.0,118250.0,0.23867673]
[1752228409730,0.50436315,118260.0,118250.0,0.23847673]
[1752228410162,0.94067561,118260.0,118250.0,0.1530468]
[1752228412297,0.94067561,118260.0,118250.0,0.1520468]
[1752228413363,0.94067561,118260.0,118250.0,0.1510468]
[1752228414191,0.94167561,118260.0,118250.0,0.1510468]
[1752228417419,0.50536315,118260.0,118250.0,0.1510468]
[1752228421355,0.44386315,118260.0,118250.0,0.23647673]
[1752228421609,0.43871315,118260.0,118250.0,0.29707673]
[1752228422182,0.00240069,118260.0,118250.0,0.29707673]
[1752228422422,0.43871315,118260.0,118250.0,0.31161758]
[1752228424976,0.43871315,118260.0,118250.0,0.25101758]
[1752228426760,0.43871315,118260.0,118250.0,0.27971758]
[1752228427195,0.43871315,118260.0,118250.0,0.31071758]
[1752228427390,0.00240069,118260.0,118250.0,0.31071758]
[1752228427595,0.43871315,118260.0,118250.0,0.31071758]
[1752228428078,0.00240069,118260.0,118250.0,0.64896758]
[1752228428290,0.43871315,118260.0,118250.0,0.64896758]
[1752228428508,0.94354561,118260.0,118250.0,0.55982532]
[1752228429140,0.94254561,118260.0,118250.0,0.55982532]
[1752228429559,0.50623315,118260.0,118250.0,0.55982532]
[1752228429981,0.94254561,118260.0,118250.0,0.55982532]
[1752228432333,0.94254561,118260.0,118250.0,0.47439539]
[1752228433427,0.94254561,118260.0,118250.0,0.47539539]
[1752228434081,0.94254561,118260.0,118250.0,0.47639539]
[1752228434997,0.94254561,118260.0,118250.0,0.47539539]
[1752228435211,0.06992069,118260.0,118250.0,0.47539539]
[1752228435421,0.94254561,118260.0,118250.0,0.52408934]
[1752228438583,0.50623315,118260.0,118250.0,0.52408934]
[1752228439029,0.94254561,118260.0,118250.0,0.52408934]
[1752228440949,0.94354561,118260.0,118250.0,0.52408934]
[1752228445429,0.94354561,118260.0,118250.0,0.60999539]
[1752228446634,0.94354561,118260.0,118250.0,0.60899539]
[1752228446838,0.94588561,118260.0,118250.0,0.60899539]
[1752228447976,0.07326069,118260.0,118250.0,0.60899539]
[1752228448196,0.50723315,118260.0,118250.0,0.60899539]
[1752228448398,0.50723315,118260.0,118250.0,0.67104934]
[1752228449262,0.44403315,118260.0,118250.0,0.75647927]
[1752228449464,0.44403315,118260.0,118250.0,0.78567927]
[1752228449465,0.00240069,118260.0,118250.0,0.78567927]
[1752228449666,0.43871315,118260.0,118250.0,0.81437927]
[1752228451688,0.00240069,118260.0,118250.0,0.75647927]
[1752228451889,0.43871315,118260.0,118250.0,0.75647927]
[1752228454361,0.4280942,118260.0,118250.0,0.75647927]
[1752228455160,0.4280942,118260.0,118250.0,0.65756727]
[1752228456867,0.43955246,118260.0,118250.0,0.65756727]
[1752228457073,0.43631246,118260.0,118250.0,0.65756727]
[1752228457747,0.03324,118270.0,118250.0,0.65756727]
[1752228457974,0.06264,118270.0,118260.0,0.35502993]
[1752228458187,0.50099246,118270.0,118260.0,0.40210455]
[1752228458401,0.50099246,118270.0,118260.0,0.83806455]
[1752228461220,0.90099246,118270.0,118260.0,0.83806455]
[1752228461651,0.90099246,118270.0,118260.0,0.75263462]
[1752228461871,0.90099246,118270.0,118260.0,0.75251462]
[1752228467044,0.93730492,118270.0,118260.0,0.75251462]
[1752228467659,0.50099246,118270.0,118260.0,0.75251462]
[1752228468075,0.90099246,118270.0,118260.0,0.75251462]
[1752228469144,0.50099246,118270.0,118260.0,0.75251462]
[1752228470764,0.50099246,118270.0,118260.0,0.48303462]
[1752228470765,0.93964492,118270.0,118260.0,0.48303462]
[1752228471444,0.93964492,118270.0,118260.0,0.75251462]
[1752228473165,0.90333246,118270.0,118260.0,0.75251462]
[1752228474267,0.90433246,118270.0,118260.0,0.75251462]
[1752228475429,1.34064492,118270.0,118260.0,0.75251462]
[1752228476211,0.90433246,118270.0,118260.0,0.75251462]
[1752228476336,1.34064492,118270.0,118260.0,0.75251462]
[1752228476768,0.94064492,118270.0,118260.0,0.75251462]
[1752228478264,0.50433246,118270.0,118260.0,0.75251462]
[1752228478675,0.50199246,118270.0,118260.0,0.75251462]
[1752228480260,0.44259246,118270.0,118260.0,0.75251462]
[1752228481730,0.43710158,118270.0,118260.0,0.75251462]
[1752228481937,0.43710158,118270.0,118260.0,0.75451462]
[1752228483109,0.43710158,118270.0,118260.0,0.83994455]
[1752228483324,0.43710158,118270.0,118260.0,0.84298455]
[1752228484389,0.46350158,118270.0,118260.0,0.83994455]
[1752228484596,0.46881158,118270.0,118260.0,0.83994455]
[1752228484821,0.49531158,118270.0,118260.0,0.83794455]
[1752228485848,0.05899912,118270.0,118260.0,0.83794455]
[1752228486056,0.49531158,118270.0,118260.0,0.83794455]
[1752228486468,0.49631158,118270.0,118260.0,0.83794455]
[1752228487107,0.49631158,118270.0,118260.0,0.83994455]
[1752228487724,0.46666158,118270.0,118260.0,0.83994455]
[1752228487934,0.43810158,118270.0,118260.0,0.84298455]
[1752228488960,0.46450158,118270.0,118260.0,0.83994455]
[1752228489977,0.49561158,118270.0,118260.0,0.83994455]
[1752228490195,0.49561158,118270.0,118260.0,0.83794455]
[1752228490793,0.49561158,118270.0,118260.0,0.83994455]
[1752228494815,0.49561158,118270.0,118260.0,0.83794455]
[1752228495026,0.49561158,118270.0,118260.0,0.75251462]
[1752228499070,0.49561158,118270.0,118260.0,0.75456462]
[1752228500032,0.49561158,118270.0,118260.0,0.75251462]
[1752228500736,0.49795158,118270.0,118260.0,0.75251462]
[1752228501055,0.93426404,118270.0,118260.0,0.75251462]
[1752228501639,1.33426404,118270.0,118260.0,0.75251462]
[1752228505599,1.35962204,118270.0,118260.0,0.75251462]
[1752228505799,0.92330958,118270.0,118260.0,0.75251462]
[1752228506258,0.89795158,118270.0,118260.0,0.75251462]
[1752228506687,1.26331058,118270.0,118260.0,0.75251462]
[1752228506901,1.23795158,118270.0,118260.0,0.75456462]
[1752228507117,0.83795158,118270.0,118260.0,0.75456462]
[1752228507755,0.83246158,118270.0,118260.0,0.75456462]
[1752228507963,0.49246158,118270.0,118260.0,0.75759462]
[1752228508405,0.49246158,118270.0,118260.0,0.75456462]
[1752228511317,0.93170404,118270.0,118260.0,0.75219462]
[1752228511859,0.93404404,118270.0,118260.0,0.75219462]
[1752228512481,0.49773158,118270.0,118260.0,0.75219462]
[1752228513008,0.93404404,118270.0,118260.0,0.75219462]
[1752228515017,1.27404404,118270.0,118260.0,0.75219462]
[1752228515868,1.67404404,118270.0,118260.0,0.75219462]
[1752228520830,1.80856404,118270.0,118260.0,0.75219462]
[1752228521623,1.40856404,118270.0,118260.0,0.75219462]
[1752228521865,0.83773158,118270.0,118260.0,0.75424462]
[1752228523107,0.80684158,118270.0,118260.0,0.75424462]
[1752228523323,0.77810158,118270.0,118260.0,0.75727462]
[1752228524962,0.83210158,118270.0,118260.0,0.75727462]
[1752228526192,0.39578912,118270.0,118260.0,0.75727462]
[1752228526375,0.80480158,118270.0,118260.0,0.75727462]
[1752228528783,0.77810158,118270.0,118260.0,0.75727462]
[1752228529888,0.83546158,118270.0,118260.0,0.75424462]
[1752228530707,0.80570158,118270.0,118260.0,0.75746462]
[1752228530926,0.36938912,118270.0,118260.0,0.75746462]
[1752228531128,0.80570158,118270.0,118260.0,0.75746462]
[1752228532165,0.83330158,118270.0,118260.0,0.75424462]
[1752228532367,0.83546158,118270.0,118260.0,0.75424462]
[1752228533195,0.39914912,118270.0,118260.0,0.75424462]
[1752228533425,0.83546158,118270.0,118260.0,0.75424462]
[1752228534203,0.80786158,118270.0,118260.0,0.75424462]
[1752228534983,0.83476158,118270.0,118260.0,0.75424462]
[1752228536017,0.39844912,118270.0,118260.0,0.75424462]
[1752228536411,0.83476158,118270.0,118260.0,0.75424462]
[1752228537239,0.83476158,118270.0,118260.0,0.75746462]
[1752228537443,0.80570158,118270.0,118260.0,0.75746462]
[1752228537659,1.20570158,118270.0,118260.0,0.75746462]
[1752228539254,1.17810158,118270.0,118260.0,0.75746462]
[1752228540058,1.20530158,118270.0,118260.0,0.75746462]
[1752228540422,0.80530158,118270.0,118260.0,0.75746462]
[1752228542725,0.77810158,118270.0,118260.0,0.75746462]
[1752228543685,0.80580158,118270.0,118260.0,0.75746462]
[1752228544344,0.83390158,118270.0,118260.0,0.75424462]
[1752228544888,0.83606158,118270.0,118260.0,0.75424462]
[1752228545017,0.83905158,118270.0,118260.0,0.75424462]
[1752228545424,1.27770404,118270.0,118260.0,0.75219462]
[1752228546143,1.27770404,118270.0,118260.0,0.75175462]
[1752228548248,1.41206404,118270.0,118260.0,0.75175462]
[1752228548454,0.97575158,118270.0,118260.0,0.75175462]
[1752228549027,0.83840158,118270.0,118260.0,0.75374462]
[1752228550023,0.84139158,118270.0,118260.0,0.75374462]
[1752228550614,0.83390158,118270.0,118260.0,0.75374462]
[1752228550776,0.83390158,118270.0,118260.0,0.75696462]
[1752228551405,0.83390158,118270.0,118260.0,0.75374462]
[1752228551613,0.83606158,118270.0,118260.0,0.75374462]
[1752228552032,0.83905158,118270.0,118260.0,0.75374462]
[1752228553761,0.83606158,118270.0,118260.0,0.75374462]
[1752228555195,0.39974912,118270.0,118260.0,0.75374462]
[1752228555541,0.83606158,118270.0,118260.0,0.75374462]
[1752228555884,0.80796158,118270.0,118260.0,0.75374462]
[1752228556902,0.83596158,118270.0,118260.0,0.75374462]
[1752228557629,0.83895158,118270.0,118260.0,0.75374462]
[1752228560169,0.84129158,118270.0,118260.0,0.75175462]
[1752228560401,1.27760404,118270.0,118260.0,0.75175462]
[1752228561162,1.27211254,118270.0,118260.0,0.75175462]
[1752228561983,0.83580008,118270.0,118260.0,0.75175462]
[1752228562375,0.83580008,118270.0,118260.0,0.75125462]
[1752228567687,0.83580008,118270.0,118260.0,0.75328462]
[1752228569575,0.39948762,118270.0,118260.0,0.75328462]